bitfinex/quotes_SOLUSD_20260224
["timestamp","ask_amount","ask_price","bid_price","bid_amount"]
[1771945384083,4.0522174,76.849,76.811,4.3933614]
[1771945384272,4.0522174,76.849,76.82,13.94518864]
[1771945384471,4.0522174,76.849,76.821,13.01727392]
[1771945384977,13.01270039,76.848,76.821,13.01727392]
[1771945385178,13.01270039,76.848,76.816,13.01806711]
[1771945385372,4.0522174,76.847,76.816,13.01806711]
[1771945385685,4.0522174,76.839,76.806,13.01978911]
[1771945386073,4.0522174,76.819,76.78,13.94518864]
[1771945386274,4.0522174,76.819,76.781,4.3933614]
[1771945386688,4.0522174,76.817,76.782,13.0238858]
[1771945387072,17.06851185,76.827,76.79,13.94518864]
[1771945387388,4.0522174,76.866,76.821,4.3933614]
[1771945387587,4.0522174,76.889,76.85,13.94518864]
[1771945387969,4.0522174,76.889,76.851,4.3933614]
[1771945388169,13.94518864,76.87,76.838,4.3933614]
[1771945388388,4.0522174,76.879,76.84,13.94518864]
[1771945388774,13.94518864,76.87,76.839,13.01422454]
[1771945388986,13.94518864,76.86,76.827,4.3933614]
[1771945389188,52.02067605,76.893,76.819,32.54379041]
[1771945389189,13.00688536,76.883,76.85,13.94518864]
[1771945389494,13.00688536,76.883,76.841,4.3933614]
[1771945389495,4.0522174,76.894,76.86,13.94518864]
[1771945389665,4.0522174,76.904,76.861,4.3933614]
[1771945389989,4.0522174,76.904,76.87,13.94518864]
[1771945390368,13.94518864,76.91,76.871,4.3933614]
[1771945390576,13.00136514,76.915,76.88,13.94518864]
[1771945390784,0.2,76.92,76.89,13.94518864]
[1771945390996,14.14518864,76.92,76.882,4.3933614]
[1771945391171,17.05290643,76.919,76.882,4.3933614]
[1771945391871,0.2,76.92,76.9,13.94518864]
[1771945392074,4.0522174,76.941,76.91,13.94518864]
[1771945392270,17.0491891,76.941,76.91,13.94518864]
[1771945392990,13.94518864,76.94,76.902,13.00356297]
[1771945393176,4.0522174,76.919,76.871,4.3933614]
[1771945393376,4.0522174,76.948,76.91,13.94518864]
[1771945393570,4.0522174,76.919,76.88,13.94518864]
[1771945393773,4.0522174,76.919,76.87,18.33855004]
[1771945393984,4.0522174,76.919,76.871,4.3933614]
[1771945394372,4.0522174,76.919,76.88,13.94518864]
[1771945394575,4.0522174,76.929,76.881,4.3933614]
[1771945394775,13.94518864,76.91,76.87,13.94518864]
[1771945395105,4.0522174,76.899,76.86,13.94518864]
[1771945395974,4.0522174,76.889,76.855,13.01147288]
[1771945396172,4.0522174,76.889,76.85,26.95742965]
[1771945396594,4.0522174,76.879,76.831,4.3933614]
[1771945396785,4.0522174,76.879,76.84,13.94518864]
[1771945396989,4.0522174,76.869,76.835,13.01475547]
[1771945397192,4.0522174,76.869,76.821,4.3933614]
[1771945397397,4.0522174,76.869,76.83,13.94518864]
[1771945397599,4.0522174,76.916,76.861,4.3933614]
[1771945397786,13.94518864,76.92,76.881,4.3933614]
[1771945398294,13.94518864,76.92,76.89,18.33855004]
[1771945398676,17.99740604,76.92,76.88,13.94518864]
[1771945398878,17.99740604,76.92,76.88,18.33855004]
[1771945399079,4.0522174,76.918,76.881,13.00711489]
[1771945399303,4.0522174,76.909,76.881,13.00711489]
[1771945399686,13.00068903,76.919,76.881,45.52490211]
[1771945399879,17.05290643,76.919,76.881,45.52490211]
[1771945400084,4.0522174,76.919,76.89,13.94518864]
[1771945400390,4.0522174,76.919,76.882,4.3933614]
[1771945400702,4.0522174,76.909,76.881,13.00711489]
[1771945401077,4.0522174,76.909,76.871,45.53082436]
[1771945401388,4.0522174,76.909,76.88,13.93440617]
[1771945401587,32.49737982,76.93,76.891,4.3933614]
[1771945401588,12.99916817,76.928,76.891,4.3933614]
[1771945401788,17.05121647,76.929,76.891,4.3933614]
[1771945402089,4.0522174,76.929,76.891,4.3933614]
[1771945402295,17.05121647,76.929,76.891,4.3933614]
[1771945402499,4.0522174,76.948,76.91,13.93440617]
[1771945402796,12.99410189,76.958,76.93,13.93440617]
[1771945403003,4.0522174,76.948,76.911,4.3933614]
[1771945403192,4.0522174,76.948,76.878,3.69383402]
[1771945403193,12.99730955,76.939,76.903,13.00339388]
[1771945403506,12.99730955,76.939,76.878,3.69383402]
[1771945403507,4.0522174,76.929,76.89,32.51381779]
[1771945403715,13.93440617,76.92,76.89,46.44822396]
[1771945403921,4.0522174,76.929,76.89,46.44822396]
[1771945404091,4.0522174,76.909,76.87,26.94338236]
[1771945404399,17.98662357,76.9,76.861,13.01049947]
[1771945404598,4.24203664,76.899,76.861,45.53674815]
[1771945404803,4.24203664,76.899,76.832,52.06106059]
[1771945404804,13.93440617,76.88,76.85,13.93440617]
[1771945405007,4.24203664,76.889,76.85,13.93440617]
[1771945405508,4.38304845,76.869,76.831,13.01557964]
[1771945405684,4.38304845,76.88,76.85,13.93440617]
[1771945405884,13.93440617,76.86,76.826,13.01628212]
[1771945406088,13.93440617,76.85,76.818,13.01764049]
[1771945406808,13.73440617,76.85,76.813,13.01852385]
[1771945407108,13.93440617,76.84,76.801,49.94206699]
[1771945407406,13.93440617,76.82,76.79,31.32653175]
[1771945407586,13.93440617,76.84,76.801,4.36974372]
[1771945407906,3.69383402,76.855,76.769,13.02600485]
[1771945407907,13.93440617,76.81,76.769,13.02600485]
[1771945408202,4.38304845,76.809,76.771,4.36974372]
[1771945408704,13.93440617,76.78,76.747,4.36974372]
[1771945408885,4.38304845,76.789,76.75,13.93440617]
[1771945409083,4.38304845,76.789,76.751,4.36974372]
[1771945409492,4.38304845,76.789,76.752,45.60141754]
[1771945409906,4.38304845,76.788,76.752,45.60141754]
[1771945410487,17.4059166,76.788,76.752,45.60141754]
[1771945410694,13.93440617,76.78,76.752,45.60141754]
[1771945411492,4.38304845,76.787,76.752,45.60141754]
[1771945411687,52.06632384,76.826,76.752,45.60141754]
[1771945411688,4.38304845,76.813,76.771,4.36974372]
[1771945412002,13.93440617,76.81,76.771,4.36974372]
[1771945412312,13.93440617,76.82,76.781,4.36974372]
[1771945412608,4.38304845,76.841,76.801,4.36974372]
[1771945412814,13.93440617,76.85,76.811,4.36974372]
[1771945413102,4.38304845,76.879,76.84,13.93440617]
[1771945413492,17.39060886,76.879,76.841,13.01388581]
[1771945413696,4.38304845,76.879,76.841,13.01388581]
[1771945413898,13.93440617,76.87,76.841,13.01388581]
[1771945414203,4.38304845,76.859,76.82,13.93440617]
[1771945414407,4.38304845,76.839,76.801,13.02066379]
[1771945414793,4.38304845,76.839,76.801,45.57232327]
[1771945415114,4.38304845,76.829,76.796,13.02139588]
[1771945415627,13.01608788,76.828,76.791,13.02235939]
[1771945415786,17.39913633,76.828,76.791,13.02235939]
[1771945415990,21.77917479,76.82,76.791,13.02235939]
[1771945416392,4.38304845,76.827,76.791,13.02235939]
[1771945416592,13.01591846,76.829,76.792,4.36974372]
[1771945416893,4.38304845,76.819,76.791,13.02235939]
[1771945417191,4.38304845,76.819,76.79,0.2]
[1771945417392,4.38304845,76.809,76.781,13.02405543]
[1771945418095,4.38304845,76.799,76.78,0.2]
[1771945418592,4.38304845,76.799,76.77,0.2]
[1771945418793,4.38304845,76.789,76.77,0.2]
[1771945419014,4.38304845,76.779,76.751,13.0291462]
[1771945419215,21.77917479,76.77,76.742,13.03061023]
[1771945419420,4.38304845,76.779,76.742,13.03061023]
[1771945419800,4.38304845,76.779,76.742,45.60729574]
[1771945420299,4.38304845,76.769,76.742,13.03061023]
[1771945420504,4.38304845,76.777,76.742,13.03061023]
[1771945421107,4.38304845,76.777,76.742,13.23061023]
[1771945421318,4.38304845,76.788,76.75,21.77917479]
[1771945421521,4.38304845,76.798,76.76,21.77917479]
[1771945421692,4.38304845,76.811,76.78,21.77917479]
[1771945421898,4.38304845,76.799,76.76,21.77917479]
[1771945422191,21.77917479,76.81,76.771,4.36974372]
[1771945422405,21.77917479,76.8,76.772,13.02558224]
[1771945422611,4.38304845,76.799,76.76,67.37583971]
[1771945422797,4.38304845,76.799,76.762,0.2]
[1771945423613,4.38304845,76.789,76.762,0.2]
[1771945424410,4.38304845,76.789,76.763,13.02710941]
[1771945424613,4.38304845,76.779,76.752,0.2]
[1771945424918,21.77917479,76.77,76.752,0.2]
[1771945425099,4.38304845,76.769,76.752,0.2]
[1771945425297,26.16222324,76.78,76.752,0.2]
[1771945425500,4.38304845,76.779,76.752,0.2]
[1771945426113,4.38304845,76.779,76.753,13.02880669]
[1771945426815,13.02289195,76.788,76.753,45.60082341]
[1771945427016,26.16222324,76.78,76.753,13.02880669]
[1771945427219,4.38304845,76.779,76.753,13.02880669]
[1771945427511,4.38304845,76.779,76.752,0.2]
[1771945427916,4.38304845,76.779,76.762,0.2]
[1771945428712,4.38304845,76.777,76.762,0.2]
[1771945428914,4.38304845,76.777,76.772,0.2]
[1771945429110,4.38304845,76.789,76.772,0.2]
[1771945429310,4.38304845,76.788,76.772,0.2]
[1771945429718,4.38304845,76.788,76.762,0.2]
[1771945430018,4.38304845,76.779,76.752,0.2]
[1771945430318,4.38304845,76.769,76.73,0.1]
[1771945430525,4.38304845,76.759,76.73,0.1]
[1771945430818,17.41096748,76.759,76.735,13.03177959]
[1771945431201,4.38304845,76.759,76.738,13.03121929]
[1771945431512,4.38304845,76.759,76.734,13.03197602]
[1771945431927,17.41090493,76.759,76.734,13.03195546]
[1771945432139,4.38304845,76.759,76.73,0.1]
[1771945432298,21.77917479,76.76,76.73,0.1]
[1771945432498,13.02703185,76.764,76.74,13.03092274]
[1771945432712,4.38304845,76.763,76.731,13.03238356]
[1771945432913,17.41083672,76.759,76.731,13.03238356]
[1771945433123,17.41083672,76.759,76.73,0.1]
[1771945433521,4.38304845,76.759,76.734,13.031924]
[1771945433919,4.38304845,76.759,76.73,0.1]
[1771945434818,4.38304845,76.77,76.733,32.58034293]
[1771945435025,3.69383402,76.777,76.744,4.06257009]
[1771945435424,4.31124684,76.794,76.751,4.06257009]
[1771945435623,4.31124684,76.808,76.771,4.06257009]
[1771945435814,4.31124684,76.819,76.781,4.06257009]
[1771945436015,4.31124684,76.809,76.77,13.98281567]
[1771945436215,4.31124684,76.809,76.771,4.06257009]
[1771945436411,4.31124684,76.825,76.79,13.98281567]
[1771945436620,4.31124684,76.825,76.78,13.98281567]
[1771945436927,13.98281567,76.82,76.781,45.584194]
[1771945437127,4.31124684,76.819,76.781,45.584194]
[1771945438024,13.98281567,76.82,76.781,45.584194]
[1771945438427,3.69383402,76.83,76.79,13.98281567]
[1771945438629,0.2,76.84,76.81,13.98281567]
[1771945438810,0.2,76.84,76.82,13.98281567]
[1771945439012,0.2,76.84,76.821,13.01727392]
[1771945439329,4.31124684,76.838,76.782,45.58360031]
[1771945439541,4.31124684,76.829,76.79,13.98281567]
[1771945439832,13.98281567,76.82,76.782,45.58360031]
[1771945440131,13.98281567,76.83,76.79,13.98281567]
[1771945440630,13.98281567,76.83,76.782,45.58360031]
[1771945440631,4.31124684,76.829,76.782,45.58360031]
[1771945440936,13.01422454,76.839,76.782,45.58360031]
[1771945440937,4.31124684,76.819,76.782,45.58360031]
[1771945441429,13.98281567,76.82,76.782,32.55971451]
[1771945441430,4.31124684,76.817,76.782,32.55971451]
[1771945441626,4.31124684,76.809,76.77,13.98281567]
[1771945441811,4.31124684,76.799,76.781,0.2]
[1771945442210,4.31124684,76.789,76.763,13.02710941]
[1771945442418,4.31124684,76.789,76.75,13.98281567]
[1771945442626,18.29406251,76.79,76.753,13.02880669]
[1771945442819,13.78281567,76.78,76.753,13.02880669]
[1771945443226,4.31124684,76.779,76.753,13.02880669]
[1771945443410,4.31124684,76.779,76.692,110.81611331]
[1771945443411,4.31124684,76.769,76.73,32.68169409]
[1771945443614,3.69383402,76.797,76.753,13.02880669]
[1771945443615,13.78281567,76.79,76.753,13.02880669]
[1771945443839,13.98281567,76.77,76.738,4.06257009]
[1771945444134,13.98281567,76.78,76.753,13.02880669]
[1771945444323,13.98281567,76.81,76.771,4.06257009]
[1771945444531,13.98281567,76.82,76.781,4.06257009]
[1771945444724,13.98281567,76.82,76.78,13.98281567]
[1771945444725,0.2,76.84,76.81,13.98281567]
[1771945445029,13.01094808,76.859,76.82,13.98281567]
[1771945445233,13.98281567,76.85,76.811,4.06257009]
[1771945445533,4.31124684,76.858,76.822,4.06257009]
[1771945446233,13.98281567,76.86,76.82,13.98281567]
[1771945446234,4.31124684,76.85,76.82,13.98281567]
[1771945446437,4.31124684,76.85,76.813,13.01862965]
[1771945446438,4.31124684,76.885,76.841,4.06257009]
[1771945446618,52.01019399,76.908,76.841,4.06257009]
[1771945446619,4.31124684,76.879,76.841,4.06257009]
[1771945446934,4.31124684,76.879,76.813,45.56520379]
[1771945446935,13.98281567,76.86,76.821,4.06257009]
[1771945447139,4.31124684,76.869,76.83,13.98281567]
[1771945447329,4.31124684,76.869,76.84,21.75771318]
[1771945447633,4.31124684,76.881,76.832,4.06257009]
[1771945447827,21.75771318,76.87,76.832,4.06257009]
[1771945448933,13.00914542,76.869,76.833,13.01524084]
[1771945449134,13.00914542,76.869,76.833,45.55334295]
[1771945449135,17.32039226,76.869,76.833,45.55334295]
[1771945449330,4.31124684,76.849,76.822,0.2]
[1771945450031,21.75771318,76.85,76.822,0.2]
[1771945450230,4.31124684,76.849,76.832,0.2]
[1771945450636,21.75771318,76.84,76.822,0.2]
[1771945450837,4.31124684,76.827,76.788,13.02286815]
[1771945451019,4.31124684,76.809,76.773,4.06257009]
[1771945451225,21.75771318,76.8,76.771,13.02575191]
[1771945451531,21.75771318,76.79,76.753,13.02880669]
[1771945451719,21.75771318,76.77,76.752,0.2]
[1771945451920,21.75771318,76.79,76.753,13.02880669]
[1771945452127,21.75771318,76.78,76.753,13.02880669]
[1771945452338,21.75771318,76.78,76.752,13.22885102]
[1771945452646,21.75771318,76.76,76.73,0.1]
[1771945453027,34.78542269,76.76,76.73,0.1]
[1771945453228,4.31124684,76.759,76.73,0.1]
[1771945453432,4.31124684,76.759,76.73,13.1326918]
[1771945453927,21.75771318,76.75,76.73,0.1]
[1771945454124,2.99815955,76.759,76.731,13.03254225]
[1771945455031,21.75771318,76.76,76.73,4.16257009]
[1771945455234,21.75771318,76.78,76.741,4.06257009]
[1771945455744,21.75771318,76.78,76.73,0.1]
[1771945455745,21.75771318,76.8,76.761,4.06257009]
[1771945457035,21.75771318,76.81,76.771,4.06257009]
[1771945457241,21.75771318,76.82,76.781,4.06257009]
[1771945457440,21.75771318,76.83,76.791,4.06257009]
[1771945457624,13.01439391,76.838,76.801,4.06257009]
[1771945458130,21.75771318,76.83,76.791,4.06257009]
[1771945458439,4.31124684,76.829,76.79,21.75771318]
[1771945459127,4.31124684,76.829,76.792,4.06257009]
[1771945459322,21.75771318,76.83,76.792,4.06257009]
[1771945459632,13.01422454,76.839,76.801,4.06257009]
[1771945460020,21.75771318,76.86,76.821,4.06257009]
[1771945460222,4.31124684,76.849,76.808,4.06257009]
[1771945460433,4.31124684,76.849,76.81,21.75771318]
[1771945460657,4.31124684,76.849,76.811,4.06257009]
[1771945461241,13.01178574,76.854,76.821,4.06257009]
[1771945461439,21.76619067,76.85,76.821,4.06257009]
[1771945462441,21.76619067,76.85,76.812,13.01879914]
[1771945462642,4.31124684,76.849,76.812,13.01879914]
[1771945463148,17.32391585,76.849,76.812,17.08136923]
[1771945463450,34.77685941,76.86,76.821,4.06257009]
[1771945463644,3.69383402,76.866,76.812,13.01879914]
[1771945463645,21.76619067,76.88,76.841,4.06257009]
[1771945463833,4.31124684,76.884,76.841,4.06257009]
[1771945464037,21.76619067,76.88,76.841,4.06257009]
[1771945464429,4.33183377,76.879,76.841,4.06257009]
[1771945464628,4.33183377,76.879,76.83,25.95693057]
[1771945464927,49.20985565,76.896,76.83,25.95693057]
[1771945464928,4.33183377,76.869,76.83,25.95693057]
[1771945465345,13.00789971,76.877,76.84,21.76619067]
[1771945465531,4.2856257,76.869,76.831,45.55452876]
[1771945466431,4.2856257,76.869,76.831,13.01557964]
[1771945466633,21.76619067,76.86,76.831,13.01557964]
[1771945466834,4.2856257,76.859,76.816,4.30917377]
[1771945467032,4.2856257,76.849,76.806,13.01981616]
[1771945467230,4.2856257,76.849,76.81,13.95917192]
[1771945467431,4.2856257,76.837,76.797,13.02134197]
[1771945467638,4.2856257,76.837,76.797,45.57469691]
[1771945467944,4.2856257,76.837,76.8,13.95917192]
[1771945468168,4.2856257,76.837,76.797,49.88387068]
[1771945468654,4.2856257,76.837,76.798,4.30917377]
[1771945469249,4.2856257,76.829,76.797,13.02134197]
[1771945469447,4.2856257,76.827,76.791,13.02235939]
[1771945469636,13.01608788,76.828,76.791,13.02235939]
[1771945469637,4.2856257,76.819,76.791,13.02235939]
[1771945469943,4.2856257,76.819,76.759,52.11087045]
[1771945469944,13.01608788,76.828,76.79,13.95917192]
[1771945470150,13.95917192,76.82,76.781,4.30917377]
[1771945470330,4.2856257,76.809,76.777,13.02473396]
[1771945470535,4.2856257,76.809,76.77,4.30917377]
[1771945470536,4.2856257,76.799,76.76,76.92834569]
[1771945470856,4.2856257,76.799,76.761,45.59607091]
[1771945471236,18.24479762,76.81,76.771,4.30917377]
[1771945471433,13.95917192,76.82,76.773,4.30917377]
[1771945471646,13.95917192,76.84,76.801,4.30917377]
[1771945471848,13.01446653,76.838,76.801,4.30917377]
[1771945472350,4.2856257,76.839,76.801,4.30917377]
[1771945473440,4.2856257,76.836,76.802,13.02049425]
[1771945473642,4.2856257,76.829,76.802,13.02049425]
[1771945474041,4.2856257,76.829,76.786,4.30917377]
[1771945474338,4.2856257,76.819,76.787,13.02303775]
[1771945474543,4.2856257,76.819,76.787,45.58063213]
[1771945474745,4.2856257,76.819,76.787,13.02303775]
[1771945475151,4.2856257,76.829,76.788,4.30917377]
[1771945475359,4.2856257,76.835,76.791,4.30917377]
[1771945475561,4.2856257,76.833,76.793,4.30917377]
[1771945477660,13.01488071,76.836,76.802,13.02049425]
[1771945477859,13.01488071,76.836,76.802,17.32966802]
[1771945478359,4.2856257,76.835,76.802,17.32966802]
[1771945478559,4.2856257,76.829,76.802,13.02049425]
[1771945478749,4.2856257,76.829,76.792,13.02218981]
[1771945479765,4.2856257,76.819,76.782,4.30917377]
[1771945480557,4.2856257,76.809,76.773,13.02541257]
[1771945480746,4.2856257,76.809,76.774,4.30917377]
[1771945481642,13.01819436,76.816,76.781,4.30917377]
[1771945482049,13.01778229,76.818,76.781,4.30917377]
[1771945482256,17.30340799,76.818,76.781,4.30917377]
[1771945482454,4.2856257,76.809,76.775,13.02507326]
[1771945482961,4.2856257,76.809,76.742,52.12203868]
[1771945482962,4.2856257,76.789,76.75,13.95917192]
[1771945483239,4.2856257,76.789,76.74,58.64]
[1771945483240,4.2856257,76.789,76.748,13.02965549]
[1771945483375,4.2856257,76.789,76.748,49.91296799]
[1771945483664,4.2856257,76.787,76.748,49.91296799]
[1771945483963,4.2856257,76.787,76.751,4.30917377]
[1771945484271,4.2856257,76.798,76.751,4.30917377]
[1771945485868,4.2856257,76.789,76.753,4.30917377]
[1771945487164,4.2856257,76.799,76.76,13.95917192]
[1771945487366,4.2856257,76.809,76.771,4.30917377]
[1771945487568,17.30493333,76.809,76.771,4.30917377]
[1771945487769,4.2856257,76.809,76.773,4.30917377]
[1771945487959,0.2,76.813,76.781,4.30917377]
[1771945488167,0.2,76.813,76.791,4.30917377]
[1771945488469,0.2,76.813,76.781,4.30917377]
[1771945488876,13.01879914,76.812,76.781,4.30917377]
[1771945489060,4.2856257,76.811,76.772,49.89871161]
[1771945489256,0.2,76.813,76.781,4.30917377]
[1771945489875,0.2,76.813,76.791,4.30917377]
[1771945490785,0.2,76.813,76.782,49.69277408]
[1771945490984,0.2,76.813,76.783,4.30917377]
[1771945491668,0.2,76.813,76.783,4.10917377]
[1771945492079,0.2,76.813,76.784,45.582413]
[1771945492683,0.2,76.813,76.79,13.95917192]
[1771945492988,0.2,76.813,76.784,45.582413]
[1771945493170,0.2,76.813,76.438,174.12314861]
[1771945493171,13.95917192,76.79,76.732,104.25809014]
[1771945493377,13.95917192,76.77,76.731,45.61389789]
[1771945493575,4.2856257,76.769,76.731,13.03254225]
[1771945494067,13.95917192,76.76,76.73,0.1]
[1771945494381,4.2856257,76.759,76.73,0.1]
[1771945496262,4.09449299,76.769,76.731,4.45742018]
[1771945496463,13.95917192,76.76,76.731,4.45742018]
[1771945497876,13.95917192,76.75,76.73,0.1]
[1771945498081,4.09449299,76.749,76.73,0.1]
[1771945498472,4.09449299,76.748,76.73,0.1]
[1771945499270,4.09449299,76.739,76.712,13.03577015]
[1771945500475,13.95917192,76.74,76.701,4.45742018]
[1771945500788,4.09449299,76.788,76.721,4.45742018]
[1771945500987,13.95917192,76.77,76.731,4.45742018]
[1771945501187,3.69383402,76.785,76.74,13.95917192]
[1771945501483,4.09449299,76.769,76.73,18.4165921]
[1771945501782,4.09449299,76.779,76.741,4.45742018]
[1771945502588,4.09449299,76.779,76.742,17.48809438]
[1771945502589,13.02456432,76.778,76.742,17.48809438]
[1771945502787,13.02456432,76.778,76.743,4.45742018]
[1771945503165,4.09449299,76.779,76.743,4.45742018]
[1771945503374,4.09449299,76.81,76.761,4.45742018]
[1771945503576,13.95917192,76.8,76.761,4.45742018]
[1771945503775,4.09449299,76.809,76.771,4.45742018]
[1771945503967,18.05366491,76.82,76.771,4.45742018]
[1771945504283,13.95917192,76.85,76.811,4.45742018]
[1771945504487,4.09449299,76.839,76.796,4.45742018]
[1771945504670,4.09449299,76.837,76.797,50.03211709]
[1771945504872,13.95917192,76.84,76.801,4.45742018]
[1771945505173,13.95917192,76.87,76.831,4.45742018]
[1771945505390,4.09449299,76.849,76.81,13.95917192]
[1771945505713,4.09449299,76.869,76.83,13.95917192]
[1771945505867,4.09449299,76.859,76.813,4.45742018]
[1771945506072,4.09449299,76.859,76.821,4.45742018]
[1771945506688,4.09449299,76.859,76.822,13.01710447]
[1771945506991,13.00930304,76.869,76.831,4.45742018]
[1771945507488,32.51265719,76.894,76.851,4.45742018]
[1771945507680,4.09449299,76.887,76.851,4.45742018]
[1771945508076,13.00602401,76.888,76.851,4.45742018]
[1771945508293,13.95917192,76.88,76.851,4.45742018]
[1771945508473,13.95917192,76.88,76.841,4.45742018]
[1771945508677,4.09449299,76.868,76.831,13.01544264]
[1771945508888,4.09449299,76.868,76.832,4.45742018]
[1771945509090,4.09449299,76.868,76.832,4.25742018]
[1771945509282,13.95917192,76.86,76.821,13.01727392]
[1771945509794,4.09449299,76.859,76.821,13.01727392]
[1771945509989,13.95917192,76.87,76.83,13.95917192]
[1771945510171,51.99446362,76.932,76.821,110.64682833]
[1771945510172,4.29449299,76.91,76.86,13.95917192]
[1771945510366,4.29449299,76.91,76.87,13.95917192]
[1771945510584,4.29449299,76.91,76.821,318.92321105]
[1771945510585,13.95917192,76.9,76.86,13.95917192]
[1771945510796,4.09449299,76.889,76.86,13.01055229]
[1771945511092,4.09449299,76.889,76.852,4.45742018]
[1771945511288,13.00407027,76.899,76.861,4.45742018]
[1771945511469,14.15917192,76.91,76.861,4.25742018]
[1771945511470,13.00277518,76.907,76.861,4.25742018]
[1771945512298,4.09449299,76.906,76.87,13.95917192]
[1771945512981,4.09449299,76.906,76.871,13.00880696]
[1771945513179,13.00305571,76.905,76.871,13.00880696]
[1771945513579,0.2,76.91,76.89,18.4165921]
[1771945513984,14.15917192,76.94,76.9,13.95917192]
[1771945514186,6.76682102,76.966,76.921,4.45742018]
[1771945514187,4.09449299,76.961,76.921,4.45742018]
[1771945514376,12.99467029,76.955,76.921,4.45742018]
[1771945514896,4.09449299,76.929,76.874,4.45742018]
[1771945515069,4.09449299,76.889,76.85,13.95917192]
[1771945515274,18.05366491,76.88,76.841,4.45742018]
[1771945515475,4.09449299,76.889,76.851,4.45742018]
[1771945516093,4.09449299,76.899,76.851,4.45742018]
[1771945516293,4.09449299,76.899,76.861,4.45742018]
[1771945516597,4.09449299,76.889,76.851,4.45742018]
[1771945517093,13.00459568,76.896,76.853,4.45742018]
[1771945518278,4.09449299,76.895,76.853,4.45742018]
[1771945518983,13.00459568,76.896,76.852,13.0120231]
[1771945518984,4.09449299,76.889,76.852,13.0120231]
[1771945519192,4.09449299,76.887,76.842,32.53391816]
[1771945519493,4.09449299,76.887,76.843,4.45742018]
[1771945519699,3.42759647,76.887,76.85,13.95917192]
[1771945519899,13.95917192,76.88,76.843,4.45742018]
[1771945520281,13.95917192,76.87,76.834,13.01506819]
[1771945520588,13.95917192,76.86,76.821,13.01727392]
[1771945520988,13.95917192,76.87,76.831,4.45742018]
[1771945521188,45.52608644,76.879,76.842,13.01371645]
[1771945521399,13.95917192,76.86,76.835,13.01474845]
[1771945521590,13.95917192,76.85,76.814,13.01846017]
[1771945521783,13.95917192,76.84,76.814,13.01846017]
[1771945521974,18.05366491,76.84,76.814,13.01846017]
[1771945522379,13.95917192,76.85,76.814,13.01846017]
[1771945522578,4.09449299,76.849,76.815,4.45742018]
[1771945523390,4.09449299,76.849,76.816,45.56342428]
[1771945523576,4.09449299,76.859,76.82,13.95804831]
[1771945523777,13.95804831,76.85,76.819,4.45742018]
[1771945523984,32.52349645,76.868,76.816,45.56342428]
[1771945523985,4.09449299,76.877,76.831,4.45742018]
[1771945524196,13.95804831,76.87,76.831,4.45742018]
[1771945524582,13.95804831,76.86,76.831,4.45742018]
[1771945524780,4.1948402,76.889,76.841,4.29390983]
[1771945524975,51.99202705,76.935,76.816,149.70839406]
[1771945524976,13.0059307,76.888,76.851,4.21848563]
[1771945525182,13.95804831,76.87,76.84,4.21848563]
[1771945525496,13.95804831,76.86,76.831,13.01557964]
[1771945525904,18.15580531,76.85,76.821,13.01727392]
[1771945526102,4.197757,76.849,76.821,13.01727392]
[1771945526608,4.197757,76.859,76.821,13.01727392]
[1771945526909,4.197757,76.859,76.822,4.21848563]
[1771945527407,13.95804831,76.86,76.831,4.21848563]
[1771945527703,13.95804831,76.84,76.811,13.01896863]
[1771945527882,13.95804831,76.85,76.812,4.21848563]
[1771945528083,4.197757,76.871,76.821,4.21848563]
[1771945528278,13.95804831,76.87,76.831,4.21848563]
[1771945529008,13.95804831,76.85,76.811,45.56639022]
[1771945529305,13.95804831,76.84,76.811,13.01896863]
[1771945529501,13.01422454,76.839,76.811,13.01896863]
[1771945529812,13.95804831,76.84,76.811,13.01896863]
[1771945529982,13.95804831,76.82,76.78,13.95804831]
[1771945530186,4.197757,76.829,76.791,4.21848563]
[1771945530588,13.95804831,76.83,76.791,4.21848563]
[1771945531313,3.69383402,76.855,76.771,13.02575191]
[1771945531314,26.97730682,76.81,76.771,13.02575191]
[1771945531484,13.95804831,76.83,76.791,4.21848563]
[1771945531885,13.95804831,76.82,76.781,4.21848563]
[1771945532102,4.197757,76.819,76.781,4.21848563]
[1771945532490,13.95804831,76.82,76.781,4.21848563]
[1771945532886,4.197757,76.829,76.791,4.21848563]
[1771945533087,13.95804831,76.82,76.791,4.21848563]
[1771945533402,13.95804831,76.82,76.792,45.57766433]
[1771945534117,18.15580531,76.82,76.792,13.02218981]
[1771945534404,18.15580531,76.81,76.787,13.02288171]
[1771945534807,13.95804831,76.81,76.787,13.02288171]
[1771945535796,13.95804831,76.81,76.784,32.55886643]
[1771945536112,13.95804831,76.81,76.772,4.21848563]
[1771945536113,13.95804831,76.8,76.772,4.21848563]
[1771945536311,4.197757,76.809,76.772,4.21848563]
[1771945536511,13.95804831,76.78,76.741,17.24932963]
[1771945536693,13.95804831,76.78,76.742,4.21848563]
[1771945537417,4.197757,76.779,76.742,4.21848563]
[1771945537711,4.197757,76.769,76.741,13.030844]
[1771945537905,4.197757,76.769,76.74,0.1]